bitfinex/quotes_ETHUSD_20260304
["timestamp","ask_amount","ask_price","bid_price","bid_amount"]
[1772595249801,3.14095489,1949.8,1948.6,3.70935554]
[1772595250001,2.94487493,1949.7,1948.7,3.86535664]
[1772595250205,2.94487493,1949.6,1948.3,1.42]
[1772595250441,2.86987493,1949.5,1948.4,5.28635664]
[1772595250658,3.74808948,1949.8,1948.3,3.86535664]
[1772595250938,3.74808948,1949.6,1948.2,3.86535664]
[1772595251112,2.50515939,1949.7,1948.1,5.47328123]
[1772595251435,3.74808948,1949.9,1948.0,7.57471218]
[1772595251602,3.74808948,1949.6,1948.0,7.57471218]
[1772595251799,3.74808948,1949.4,1948.1,1.28330167]
[1772595252003,3.74808948,1949.4,1948.0,3.86535664]
[1772595252226,5.68679717,1949.6,1948.0,5.14870182]
[1772595252430,1.28235395,1949.6,1948.0,5.14870182]
[1772595252635,3.74808948,1949.7,1948.0,5.14870182]
[1772595252835,3.74808948,1949.7,1946.9,1.7230904]
[1772595252836,0.521881,1948.0,1946.9,1.7230904]
[1772595253134,3.74808948,1948.5,1946.9,1.7230904]
[1772595253428,3.74808948,1949.0,1947.2,1.76392569]
[1772595253599,3.74808948,1949.4,1947.6,1.76392569]
[1772595253804,5.03053846,1949.4,1947.8,1.28349933]
[1772595254006,3.74808948,1949.4,1947.9,1.435]
[1772595254212,3.74808948,1949.4,1947.8,1.28349933]
[1772595254721,3.74808948,1949.4,1947.9,1.438]
[1772595254913,1.28198553,1950.1,1948.1,3.70935554]
[1772595255105,1.28198553,1950.1,1948.3,3.70935554]
[1772595255427,3.74808948,1950.0,1948.3,5.15035554]
[1772595255606,1.28198553,1950.1,1948.2,2.70923045]
[1772595255607,2.50515939,1949.9,1948.2,2.70923045]
[1772595255811,1.28224855,1949.7,1948.1,1.28330167]
[1772595256116,5.03033803,1949.7,1948.1,1.28330167]
[1772595256318,5.03033803,1949.7,1948.1,2.72830167]
[1772595256631,5.03033803,1949.7,1948.2,1.446]
[1772595256930,5.03033803,1949.7,1948.2,1.447]
[1772595257228,3.74508948,1949.6,1948.2,1.448]
[1772595257430,3.74508948,1949.6,1948.1,2.73340167]
[1772595257636,3.74508948,1949.6,1948.1,1.28440167]
[1772595257808,5.1289942,1949.8,1948.3,1.28316994]
[1772595258005,1.28218278,1949.8,1948.3,1.28316994]
[1772595258736,1.28218278,1949.8,1948.3,2.73616994]
[1772595258931,4.85869217,1949.6,1948.3,2.73716994]
[1772595259124,4.85869217,1949.6,1948.3,1.28316994]
[1772595259932,1.28238009,1949.5,1948.2,6.58867977]
[1772595260145,1.28238009,1949.5,1948.2,1.2832358]
[1772595260311,6.52606216,1949.4,1948.1,0.0011]
[1772595260515,4.76213647,1949.3,1948.1,1.28439927]
[1772595260725,4.76213647,1949.3,1948.1,1.28437764]
[1772595260930,1.28238009,1949.5,1948.1,1.28439869]
[1772595261138,1.28238009,1949.5,1948.2,5.21065719]
[1772595261322,2.50515939,1949.9,1948.4,5.21065719]
[1772595261522,1.76392569,1948.5,1947.5,1.54019266]
[1772595261741,5.29177707,1948.8,1946.9,0.439]
[1772595261742,0.91242174,1947.6,1946.9,0.439]
[1772595261942,9.89555144,1948.1,1946.9,0.439]
[1772595262144,4.76213647,1948.1,1947.0,5.13320671]
[1772595262347,1.2832358,1948.2,1946.9,1.7230822]
[1772595262517,1.2832003,1948.3,1947.0,5.13320671]
[1772595262846,6.04533677,1948.3,1947.0,5.13320671]
[1772595263022,1.2832003,1948.3,1947.0,5.13320671]
[1772595263342,1.2832003,1948.3,1947.0,10.3438639]
[1772595263724,1.28297239,1948.6,1947.0,10.3438639]
[1772595263929,7.80903455,1948.6,1947.1,1.28396076]
[1772595264247,0.5,1948.5,1947.2,5.13320671]
[1772595264618,0.5,1948.5,1947.2,10.3438639]
[1772595264820,1.28297239,1948.6,1947.2,6.8971324]
[1772595265040,1.28297239,1948.6,1947.3,5.21065719]
[1772595265234,1.28295338,1948.7,1947.3,5.21065719]
[1772595265434,6.32613647,1949.1,1947.6,5.21065719]
[1772595265435,1.28270908,1949.0,1947.6,5.21065719]
[1772595265917,1.28244588,1949.4,1947.7,6.49422242]
[1772595266136,1.28244588,1949.4,1947.7,11.62742913]
[1772595266339,4.76213647,1949.3,1947.8,6.67865719]
[1772595266541,4.76213647,1949.3,1947.9,5.21065719]
[1772595266927,1.28244588,1949.4,1947.9,5.13320671]
[1772595267236,6.04431925,1949.8,1948.2,5.21065719]
[1772595267542,6.04431925,1949.8,1948.3,1.469]
[1772595267745,6.04431925,1949.8,1948.4,1.47]
[1772595267947,6.04431925,1949.8,1948.5,1.28303823]
[1772595268248,1.2819198,1950.2,1948.7,5.21065719]
[1772595268752,1.2819198,1950.2,1948.9,5.21065719]
[1772595268949,1.28159122,1950.7,1949.0,5.21065719]
[1772595269253,1.28159122,1950.7,1949.1,5.21065719]
[1772595269254,3.04551691,1950.7,1949.1,5.21065719]
[1772595269554,3.04551691,1950.7,1949.1,6.68265719]
[1772595269917,3.04551691,1950.7,1949.2,1.28257746]
[1772595270146,1.28159122,1950.7,1949.2,1.28257746]
[1772595270348,1.28159122,1950.7,1949.2,6.49323465]
[1772595270651,1.28159122,1950.7,1949.3,5.13320671]
[1772595270951,0.001,1949.7,1949.3,10.3438639]
[1772595271169,3.04551691,1950.7,1949.3,6.60720671]
[1772595271344,7.6658126,1950.6,1949.3,5.13320671]
[1772595271523,1.76392569,1950.1,1948.8,1.28284072]
[1772595272052,1.28205128,1950.0,1948.7,5.13143022]
[1772595272219,1.28205128,1950.0,1948.8,5.13320671]
[1772595272416,4.76213647,1949.2,1948.0,0.0011]
[1772595272621,4.76213647,1949.2,1948.2,5.13430671]
[1772595272622,1.76392569,1949.0,1948.2,5.13430671]
[1772595272817,4.76213647,1949.2,1948.2,0.0011]
[1772595273025,2.90245348,1949.1,1948.2,6.4175355]
[1772595273331,2.32628469,1949.6,1948.2,11.62819269]
[1772595273652,2.90687838,1949.6,1948.3,1.476]
[1772595273856,4.76213647,1949.7,1948.3,1.476]
[1772595274043,8.10406216,1949.9,1948.4,5.13320671]
[1772595274351,4.76213647,1949.5,1948.4,5.13320671]
[1772595274523,6.52606216,1949.3,1948.4,5.13320671]
[1772595274724,2.9115975,1949.2,1948.4,5.13320671]
[1772595275830,10.00001866,1949.2,1948.4,5.13320671]
[1772595276029,2.9115975,1949.1,1948.4,5.13320671]
[1772595276252,4.19430658,1949.0,1948.4,5.13320671]
[1772595276453,2.9115975,1948.9,1948.4,5.13320671]
[1772595277138,2.9115975,1948.8,1948.4,5.13320671]
[1772595277335,3.60899377,1949.0,1948.2,0.0011]
[1772595277336,2.9115975,1948.7,1948.2,0.0011]
[1772595277528,5.23788219,1948.6,1948.2,0.0011]
[1772595277753,2.32628469,1948.9,1948.2,1.28433119]
[1772595277955,2.92956987,1948.8,1948.2,1.28433119]
[1772595278131,2.32628469,1949.1,1948.2,6.49498838]
[1772595278465,2.93946675,1949.0,1948.2,6.49498838]
[1772595278629,2.84888414,1948.9,1948.2,6.49498838]
[1772595278953,1.28251849,1949.3,1948.3,5.21065719]
[1772595279159,2.32628469,1949.1,1948.4,1.478]
[1772595279533,2.32628469,1949.2,1948.5,5.21065719]
[1772595279733,2.32628469,1949.3,1948.7,5.21065719]
[1772595279944,2.32628469,1949.3,1948.7,6.68865719]
[1772595280139,2.32628469,1949.3,1948.8,1.28284072]
[1772595280760,2.32628469,1949.4,1948.8,1.28284072]
[1772595281063,2.32628469,1949.3,1948.8,1.28284072]
[1772595281274,2.32628469,1949.4,1948.8,7.97249791]
[1772595281430,3.60860274,1949.6,1948.9,1.479]
[1772595281627,5.12915649,1949.7,1948.8,6.49349791]
[1772595281628,2.32628469,1949.5,1948.8,6.49349791]
[1772595281858,2.32628469,1949.3,1948.5,1.479]
[1772595282164,3.60886215,1949.2,1948.4,1.479]
[1772595282455,2.32628469,1949.2,1948.3,6.49382713]
[1772595282827,2.32628469,1949.2,1948.4,1.479]
[1772595283031,2.32628469,1949.2,1948.5,5.21065719]
[1772595283229,3.54407215,1949.5,1948.5,5.21065719]
[1772595283434,4.82632103,1949.7,1948.6,5.21065719]
[1772595283666,3.54407215,1949.7,1948.6,5.21065719]
[1772595283833,4.82626626,1949.8,1948.6,5.21065719]
[1772595284033,3.54407215,1949.8,1948.6,5.21175719]
[1772595284259,4.82624028,1949.9,1948.8,5.21065719]
[1772595284460,3.54407215,1949.8,1948.9,1.478]
[1772595284760,3.54407215,1949.5,1948.6,1.28406546]
[1772595285257,6.0443046,1949.9,1948.6,6.49472265]
[1772595285258,3.54407215,1949.6,1948.6,6.49472265]
[1772595285471,3.54407215,1949.5,1948.6,1.28406332]
[1772595285632,5.27797014,1948.6,1947.0,1.2840267]
[1772595285963,3.54114662,1948.5,1947.1,5.21065719]
[1772595286326,1.28308687,1948.5,1947.3,5.21065719]
[1772595286532,4.82423349,1948.5,1947.4,1.478]
[1772595286739,1.28308687,1948.5,1947.4,6.68865719]
[1772595287158,1.28308687,1948.5,1947.4,5.21065719]
[1772595287364,1.28308687,1948.5,1947.5,1.478]
[1772595288467,4.82423349,1948.5,1947.5,1.478]
[1772595290083,4.82423349,1948.5,1947.4,6.4943726]
[1772595290256,4.82423349,1948.5,1947.6,1.28363113]
[1772595290457,1.28308687,1948.5,1947.6,1.28363113]
[1772595290794,1.28308687,1948.5,1947.6,2.76063113]
[1772595290795,2.95075571,1948.4,1947.6,2.76063113]
[1772595290965,1.28308687,1948.5,1947.6,2.76063113]
[1772595290966,2.95075571,1948.3,1947.6,2.76063113]
[1772595291174,2.95075571,1948.2,1947.7,1.477]
[1772595291470,2.95075571,1948.1,1947.7,1.477]
[1772595291654,4.82410427,1948.7,1947.7,6.45604755]
[1772595291985,2.9515608,1948.6,1947.8,4.97904755]
[1772595292284,2.9515608,1948.5,1947.9,1.28343344]
[1772595292481,2.9515608,1948.4,1947.9,1.28343344]
[1772595292692,1.28294484,1948.7,1947.9,1.28343344]
[1772595292693,1.28288656,1948.8,1947.9,1.28343344]
[1772595292914,2.95520539,1948.7,1948.0,4.97904755]
[1772595293059,3.54114662,1949.3,1948.2,4.97904755]
[1772595293387,4.82364207,1949.4,1948.3,6.45504755]
[1772595293595,1.28249545,1949.4,1948.6,0.003]
[1772595294162,1.28249545,1949.4,1948.7,1.476]
[1772595294365,1.28249545,1949.4,1948.7,2.75889577]
[1772595294759,1.28249545,1949.4,1948.7,1.475]
[1772595295285,1.28249545,1949.4,1948.6,1.28593148]
[1772595295286,4.82364207,1949.4,1948.6,0.003]
[1772595295496,3.54114662,1949.3,1948.6,0.003]
[1772595295698,8.90308729,1949.3,1948.6,0.003]
[1772595295861,3.54114662,1949.2,1948.6,0.003]
[1772595296498,1.28264327,1949.1,1948.6,0.003]
[1772595296704,1.28231432,1949.6,1948.6,0.003]
[1772595296871,4.42635976,1949.4,1948.6,0.003]
[1772595297191,11.05281233,1949.5,1948.6,0.003]
[1772595297495,11.05281233,1949.2,1947.9,6.26242274]
[1772595297930,6.62645257,1949.2,1947.9,6.26242274]
[1772595298131,11.05281233,1949.2,1947.9,7.73742274]
[1772595298624,1.28264327,1949.1,1947.9,7.73742274]
[1772595298832,1.28364327,1949.1,1947.9,7.73742274]
[1772595299828,1.28364327,1949.1,1947.9,6.26242274]
[1772595300132,5.71000303,1949.1,1948.0,1.475]
[1772595300507,1.28364327,1949.1,1947.9,6.26247783]
[1772595300836,5.71000303,1949.1,1947.9,7.73747783]
[1772595300988,5.71000303,1949.1,1947.9,6.26247783]
[1772595301188,5.71000303,1949.1,1947.9,7.73747783]
[1772595301389,1.2645119,1948.9,1947.5,4.97904755]
[1772595301590,1.2645119,1948.3,1947.4,0.0011]
[1772595301791,4.42635976,1948.1,1947.4,0.0011]
[1772595302036,1.579,1948.2,1947.4,1.28485121]
[1772595302828,1.28322519,1948.3,1947.4,2.76085121]
[1772595303199,3.56293274,1947.8,1946.9,0.439]
[1772595303398,1.2645119,1947.9,1946.9,0.439]
[1772595303399,9.2538044,1947.6,1946.9,0.439]
[1772595303621,3.56293274,1947.6,1946.9,0.439]
[1772595304326,4.42635976,1947.8,1946.9,0.439]
[1772595304514,1.58,1947.9,1946.9,0.439]
[1772595304701,3.7416227,1947.7,1946.9,0.439]
[1772595305105,2.9542583,1947.6,1946.9,0.439]
[1772595305310,2.9542583,1947.5,1946.9,0.439]
[1772595305513,6.62645257,1947.0,1945.6,1.28490888]
[1772595305821,1.88876643,1947.5,1945.7,6.24355945]
[1772595305822,2.9542583,1946.9,1945.7,6.24355945]
[1772595306026,2.9542583,1946.8,1945.7,6.24355945]
[1772595306222,2.9542583,1946.8,1945.5,5.13987402]
[1772595306223,9.88862162,1946.7,1945.1,4.97904755]
[1772595306421,1.581,1946.8,1945.5,4.97904755]
[1772595306620,4.5269145,1946.7,1945.4,1.2645119]
[1772595306831,4.23020505,1946.6,1945.5,1.2850167]
[1772595307045,2.94592816,1946.5,1945.4,1.2850408]
[1772595307209,1.28424229,1946.7,1945.5,6.24355945]
[1772595308103,1.28424229,1946.7,1945.6,4.97904755]
[1772595308304,5.13663537,1946.8,1946.1,1.2645119]
[1772595308305,1.28420521,1946.8,1946.1,1.2645119]
[1772595308510,1.28396076,1947.1,1946.0,1.2645119]
[1772595308716,5.13584304,1947.2,1946.1,1.28462052]
[1772595309002,5.13584304,1947.2,1945.9,6.26375302]
[1772595309215,5.13584304,1947.2,1945.9,4.97904755]
[1772595309414,5.13584304,1947.2,1945.2,0.065536]
[1772595309415,5.36194067,1947.0,1945.5,7.52852347]
[1772595309717,2.93595684,1946.9,1945.5,9.00452347]
[1772595309913,5.36194067,1947.0,1945.5,9.00452347]
[1772595310121,5.36194067,1947.0,1945.8,1.2645119]
[1772595310303,5.13584304,1947.2,1946.1,6.24355945]
[1772595310744,1.28356523,1947.7,1946.5,1.28435653]
[1772595310943,2.93499583,1947.6,1946.5,1.28435653]
[1772595311415,2.93499583,1947.6,1946.2,4.97904755]
[1772595311416,8.2969365,1947.6,1946.2,6.26469032]
[1772595311618,8.2969365,1947.5,1946.2,6.26469855]
[1772595311845,2.93499583,1947.4,1946.2,6.26469855]
[1772595312057,1.582,1947.3,1946.2,6.26469855]
[1772595312556,5.36194067,1947.1,1946.2,0.0011]
[1772595312841,1.28409266,1946.9,1946.2,0.0011]
[1772595314513,1.28400497,1947.1,1946.2,1.2656119]
[1772595314737,5.13567245,1947.2,1946.3,1.28448851]
[1772595314937,1.28389482,1947.2,1947.1,0.003]
[1772595315142,8.7797071,1947.9,1947.1,0.003]
[1772595315143,2.81249933,1947.9,1947.1,0.003]
[1772595315344,1.28336755,1948.0,1947.1,0.003]
[1772595315514,8.29860264,1947.9,1947.1,0.003]
[1772595315845,4.51966197,1947.8,1947.1,0.003]
[1772595316010,2.93666197,1947.7,1947.1,0.003]
[1772595316212,6.94494067,1947.8,1947.1,0.003]
[1772595316639,1.583,1947.8,1947.1,0.003]
[1772595316844,1.28356523,1947.7,1947.1,0.003]
[1772595320129,5.18656262,1947.5,1946.2,5.30358907]
[1772595320318,2.93616075,1947.4,1946.4,6.56700097]
[1772595320522,6.47012785,1947.7,1946.4,5.30248907]
[1772595320839,2.93641179,1947.6,1946.4,5.30248907]
[1772595321153,1.28369704,1947.5,1946.7,6.56700097]
[1772595321848,1.583,1947.8,1946.7,6.56700097]
[1772595322028,1.28359471,1947.7,1946.7,6.56700097]
[1772595322638,2.86652398,1947.8,1947.0,1.2645119]
[1772595322831,1.583,1947.8,1947.0,6.56700097]
[1772595323030,1.28347724,1947.9,1947.0,6.56700097]
[1772595323450,1.28330167,1948.1,1947.2,5.30248907]
[1772595323629,1.28330167,1948.1,1947.3,1.2645119]
[1772595323835,1.28330167,1948.1,1947.3,6.56700097]
[1772595324036,2.86628638,1948.2,1947.3,6.56700097]
[1772595324239,1.28328638,1948.2,1947.3,6.56700097]
[1772595324565,0.001,1947.7,1947.3,6.56700097]
[1772595325259,1.28320706,1948.3,1947.4,5.30248907]
[1772595325430,1.583,1948.6,1947.4,5.30248907]
[1772595325431,1.28303823,1948.5,1947.6,1.2645119]
[1772595325632,1.28301502,1948.6,1947.9,1.2645119]
[1772595325831,1.28277489,1948.9,1947.9,6.56700097]
[1772595326135,5.13198708,1949.0,1947.9,6.56700097]
[1772595326136,1.28375631,1949.0,1947.9,6.56700097]
[1772595326561,0.001,1949.0,1948.2,6.56700097]
[1772595327063,0.001,1949.1,1948.5,1.2645119]
[1772595327559,0.001,1949.1,1948.6,6.58546146]
[1772595328062,0.001,1949.1,1948.3,1.28316994]
[1772595328264,0.001,1949.1,1948.2,5.30248907]
[1772595328429,0.001,1949.1,1948.2,6.58571061]
[1772595328867,0.001,1949.1,1948.2,5.30248907]
[1772595329031,0.001,1949.1,1947.9,2.75138257]
[1772595329232,0.001,1949.1,1947.8,5.30248907]
[1772595329469,6.71209959,1949.0,1947.8,5.30248907]
[1772595329643,6.71209959,1949.0,1947.7,1.28352009]
[1772595329644,4.22255558,1948.9,1947.7,1.28352009]
[1772595329835,1.28277489,1948.9,1947.7,6.58600916]
[1772595330863,6.45107452,1948.7,1947.3,6.58630757]
[1772595331066,1.28277489,1948.9,1947.3,6.58631539]
[1772595331067,9.38929374,1948.6,1947.3,6.58631539]
[1772595331366,2.93821922,1948.5,1947.3,6.58631526]
[1772595331735,1.28310408,1948.4,1947.3,5.30248907]
[1772595332265,1.28310408,1948.4,1946.2,0.0011]
[1772595332266,1.2645119,1947.4,1946.2,0.0011]
[1772595332472,6.76556262,1947.3,1946.2,0.0011]
[1772595332771,7.07332905,1947.7,1946.3,2.54900041]
[1772595332932,2.93836393,1947.6,1946.4,5.30248907]
[1772595333136,2.93836393,1947.5,1946.4,5.30248907]
[1772595333351,1.579,1947.9,1946.6,6.56700097]
[1772595333544,2.93859962,1947.8,1946.6,6.56700097]
[1772595333744,2.93859962,1947.8,1946.7,1.28422458]
[1772595333745,1.28356523,1947.7,1946.7,1.28422458]
[1772595333971,1.28356523,1947.7,1946.7,6.58671365]
[1772595334159,1.28356523,1947.7,1946.7,5.30248907]
[1772595334736,1.28356523,1947.7,1946.5,2.54885234]
[1772595334966,1.28356523,1947.7,1946.2,0.0011]
[1772595334967,6.45107452,1947.6,1946.2,0.0011]
[1772595335189,8.12392628,1947.5,1946.2,0.0011]
[1772595335392,2.93736366,1947.4,1946.2,0.0011]
[1772595335694,1.28389482,1947.2,1946.2,0.0011]
[1772595336099,2.93555031,1947.1,1946.2,0.0011]
[1772595336595,8.12211293,1947.1,1946.2,0.0011]
[1772595336793,5.18656262,1946.6,1946.0,0.0011]
[1772595336995,4.51255031,1946.5,1946.0,0.0011]
[1772595337180,4.51255031,1946.5,1946.3,0.0011]
[1772595337181,1.577,1946.5,1946.3,0.0011]
[1772595337789,1.28442252,1946.4,1946.3,0.0011]
[1772595338088,1.28439641,1946.5,1946.3,0.0011]
[1772595339588,1.577,1947.0,1946.3,0.0011]
[1772595339589,5.13638463,1946.9,1946.3,0.0011]
[1772595342274,2.93417068,1946.8,1946.2,0.0011]
[1772595342474,8.1207333,1946.8,1946.2,0.0011]
[1772595342691,2.93450602,1946.7,1946.2,0.0011]
[1772595342895,5.18656262,1946.8,1946.2,0.0011]
[1772595343407,2.93399318,1946.7,1946.2,0.0011]
[1772595343578,5.13638463,1946.9,1946.2,0.0011]
[1772595343776,2.93434835,1946.8,1946.2,0.0011]
[1772595344180,1.28422458,1946.7,1946.2,0.0011]
[1772595344883,8.12105167,1946.6,1946.2,0.0011]
[1772595345090,5.18656262,1946.4,1946.0,0.0011]
[1772595345291,2.93448905,1946.3,1946.0,0.0011]
[1772595345697,5.18656262,1946.4,1946.0,0.0011]
[1772595345977,2.93302986,1946.3,1946.0,0.0011]
[1772595346286,1.28442252,1946.4,1946.0,0.0022]
[1772595347273,6.47098514,1946.4,1945.9,0.0011]
[1772595347473,6.47098514,1946.4,1945.0,3.78853978]
[1772595347702,6.47098514,1946.4,1945.3,1.2645119]
[1772595347892,6.47098514,1946.4,1945.6,1.2645119]
[1772595347893,1.28442252,1946.4,1945.6,1.2645119]
[1772595348371,1.28442252,1946.4,1945.6,2.54945408]
[1772595348574,2.34738289,1946.9,1945.6,2.54945408]
[1772595348575,5.13610683,1947.1,1946.2,1.2645119]
[1772595348972,5.13610683,1947.1,1945.9,1.2645119]
[1772595349785,5.13610683,1947.1,1946.1,0.0011]
[1772595350703,5.40086952,1946.9,1946.1,0.0011]
[1772595350903,6.40061873,1947.1,1946.1,0.0011]
[1772595351108,5.13610683,1947.1,1946.1,0.0011]
[1772595351510,5.13610683,1947.1,1946.2,6.76589224]
[1772595351682,1.28396076,1947.1,1946.2,6.76589224]
[1772595351887,6.70764266,1947.2,1946.5,6.76589224]
[1772595351888,2.8559281,1947.2,1946.5,6.76589224]
[1772595352407,2.8559281,1947.2,1946.6,1.28429055]
[1772595352604,5.13382892,1947.9,1946.6,1.28429055]
[1772595352605,1.57,1947.8,1946.8,6.76589224]
[1772595352979,1.57,1947.8,1947.1,1.2645119]
[1772595353780,1.57,1947.8,1946.8,6.76589224]
[1772595353981,1.28336755,1948.0,1947.1,6.76589224]
[1772595354177,1.28336755,1948.0,1947.1,5.50138034]
[1772595354377,5.13347022,1948.1,1947.1,5.50138034]
[1772595355009,10.53433974,1948.1,1946.6,1.28429055]
[1772595355201,8.33088393,1948.0,1946.5,8.05024486]
[1772595355376,4.19452631,1947.9,1946.1,2.58034122]
[1772595355577,4.19452631,1947.9,1946.1,3.86493963]
[1772595355578,1.2645119,1947.6,1946.1,3.86493963]
[1772595355809,4.49901441,1947.5,1946.1,3.86493963]
[1772595356032,4.49901441,1947.5,1946.3,1.2645119]
[1772595356033,1.569,1947.5,1946.3,1.2645119]
[1772595356319,1.569,1947.5,1946.1,3.86493963]
[1772595356320,2.85274864,1947.5,1946.7,1.28422458]
[1772595357901,1.569,1947.5,1946.7,6.78560492]
[1772595358619,1.28368191,1947.6,1946.7,6.78560492]
[1772595359420,1.28343344,1947.9,1946.7,6.78560492]
[1772595359595,1.2832358,1948.2,1947.0,5.50138034]
[1772595359802,2.9448577,1948.1,1947.0,5.50138034]
[1772595360628,5.13294322,1948.5,1947.0,5.50138034]
[1772595360629,1.28301219,1948.6,1947.6,5.50138034]
[1772595360811,0.001,1948.9,1947.9,5.50138034]
[1772595361384,0.001,1948.9,1948.2,7.27350004]
[1772595361609,0.001,1949.1,1948.3,5.50138034]
[1772595362008,0.001,1949.1,1948.6,5.50138034]
[1772595362441,1.567,1950.1,1948.8,1.7721197]
[1772595362600,2.94085501,1950.0,1948.9,5.50138034]
[1772595362797,1.28189833,1950.3,1948.9,5.50138034]
[1772595363030,1.2818367,1950.4,1949.0,5.50138034]
[1772595363894,6.68270622,1950.4,1949.0,5.50138034]
[1772595364105,5.40086952,1949.9,1948.6,5.50138034]
[1772595364353,7.17298922,1949.7,1948.2,6.78458417]
[1772595364521,1.28231432,1949.6,1948.2,5.50138034]
[1772595364837,1.28231432,1949.6,1948.4,5.50138034]
[1772595364838,2.92570342,1949.5,1948.4,5.50138034]
[1772595365041,1.28231432,1949.6,1948.4,5.50138034]
[1772595365947,1.28229153,1949.7,1948.7,5.50138034]
[1772595366334,5.12768942,1950.2,1948.7,5.50138034]
[1772595366528,5.12768942,1950.2,1948.8,1.28284072]
[1772595366862,5.12768942,1950.2,1948.8,6.78422106]
[1772595367220,1.2819198,1950.3,1948.9,5.50138034]
[1772595368142,1.2819198,1950.3,1949.1,5.50138034]
[1772595368517,1.2819198,1950.3,1949.2,5.50138034]
[1772595368719,5.12741629,1950.4,1949.3,1.28251167]
[1772595369061,5.12741629,1950.4,1949.3,6.78389201]
[1772595369262,5.12741629,1950.4,1949.3,5.50138034]
[1772595370070,5.12741629,1950.4,1949.2,1.28252828]
[1772595370537,5.12741629,1950.4,1949.2,6.78390862]
[1772595370732,5.12741629,1950.4,1948.8,5.50138034]
[1772595370733,1.7721197,1950.2,1948.8,5.50138034]
[1772595370956,5.40086952,1950.1,1948.4,5.50138034]
[1772595371160,10.52828581,1950.4,1948.4,5.50138034]
[1772595371768,1.7721197,1949.9,1948.4,5.50138034]
[1772595371943,3.3361197,1949.9,1948.4,5.50138034]
[1772595372886,3.3361197,1949.9,1948.2,2.57924122]
[1772595372887,7.17298922,1949.6,1948.2,2.57924122]
[1772595373164,1.28224855,1949.7,1948.0,6.78474784]
[1772595373165,7.17298922,1949.3,1948.0,6.78474784]
[1772595373364,1.563,1949.2,1948.0,6.78474596]
[1772595373664,6.96386952,1949.2,1948.4,0.0011]
[1772595374765,6.96386952,1949.2,1948.3,0.0011]
[1772595374766,1.28270908,1949.0,1948.3,0.0011]
[1772595377042,6.6835786,1949.0,1948.3,0.0011]
[1772595377442,1.28270908,1949.0,1948.3,0.0011]
[1772595378456,5.48935314,1948.6,1948.1,0.0011]
[1772595378671,7.26147284,1948.4,1947.1,5.07940385]
[1772595378849,4.1997193,1948.3,1947.1,5.07940385]
[1772595379050,6.77252308,1948.3,1946.7,6.3635778]
[1772595379253,2.91841328,1948.2,1946.8,5.07940385]
[1772595379570,2.84616994,1948.3,1946.8,5.07940385]
[1772595380176,2.84616994,1948.3,1947.0,1.7721197]
[1772595380351,2.84616994,1948.3,1947.1,5.26670968]
[1772595381377,5.43160037,1948.1,1946.5,6.55106621]
[1772595381686,2.9237755,1948.0,1946.5,6.55106621]
[1772595382246,5.43160037,1947.9,1946.5,5.26670968]
[1772595382471,2.9237755,1948.0,1946.5,5.26670968]
[1772595382472,10.12749557,1947.8,1946.5,5.26670968]
[1772595382661,9.91837587,1947.7,1946.3,1.28442398]
[1772595382867,2.9237755,1947.6,1946.3,6.55113366]
[1772595383069,1.28369704,1947.5,1946.3,6.55113366]
[1772595383579,6.71529741,1947.5,1946.1,2.58034122]
[1772595383877,6.71529741,1947.5,1946.1,3.86494077]
[1772595383878,8.35523184,1947.4,1946.1,3.86494077]
[1772595384051,5.43160037,1947.4,1946.1,2.58034122]
[1772595384477,5.43160037,1947.4,1946.1,0.0011]
[1772595384668,8.354088,1947.3,1946.1,0.0011]
[1772595384874,5.43160037,1947.3,1946.1,0.0011]
[1772595385195,6.71549519,1947.2,1946.1,0.0011]
[1772595385484,1.563,1947.1,1946.1,0.0011]
[1772595385687,6.71549519,1947.2,1946.3,5.26670968]
[1772595385688,1.28389482,1947.2,1946.3,5.26670968]
[1772595385979,1.28369704,1947.5,1946.5,5.26670968]
[1772595387477,1.28369704,1947.5,1946.5,6.55106584]
[1772595387870,1.28369704,1947.5,1946.2,3.85125631]
[1772595388067,1.28369704,1947.5,1946.2,9.11796599]
[1772595388379,2.92036953,1947.4,1946.2,0.0011]
[1772595388550,2.92036953,1947.4,1946.2,1.28563171]
[1772595388957,2.92036953,1947.4,1946.2,1.28565321]
[1772595389158,2.92036953,1947.4,1946.2,6.55236289]
[1772595389355,6.71529741,1947.5,1946.2,0.0011]
[1772595389555,6.71529741,1947.5,1946.2,1.2856536]
[1772595389859,6.71529741,1947.5,1946.2,1.28564]
[1772595390483,8.35040835,1947.4,1946.2,0.0011]
[1772595390653,5.43160037,1947.3,1946.2,0.0011]
[1772595391468,6.71562707,1947.0,1946.2,0.0011]
[1772595391664,1.2840267,1947.0,1946.2,0.0011]
[1772595391866,2.8450267,1947.0,1946.2,0.0011]
[1772595393496,2.8450267,1947.0,1946.2,5.26780968]
[1772595394700,1.561,1947.0,1946.2,5.26780968]
[1772595394902,1.28399048,1947.1,1946.3,5.26670968]
[1772595395054,5.13538508,1947.3,1946.3,5.26670968]
[1772595395458,2.84279957,1947.4,1946.5,7.03882938]
[1772595395701,2.84277171,1947.4,1946.6,5.26670968]
[1772595395858,1.559,1947.4,1946.6,5.26670968]
[1772595396065,2.84276434,1947.4,1946.6,5.26670968]
[1772595397603,2.84276434,1947.4,1946.3,1.28444706]
[1772595397758,2.84276434,1947.4,1946.3,5.26670968]
[1772595398194,2.84276434,1947.4,1946.3,5.26780968]
[1772595398498,2.92719958,1947.3,1946.3,0.0011]
[1772595398704,2.84276434,1947.4,1946.3,5.26780968]
[1772595398999,2.84276434,1947.4,1946.4,5.26670968]
[1772595399235,2.84276434,1947.4,1946.3,0.0011]
[1772595399537,2.93127507,1947.3,1946.3,0.0011]
[1772595399725,1.28389482,1947.2,1946.3,0.0011]
[1772595399923,1.28389482,1947.2,1946.3,1.7732197]
[1772595400221,1.28389482,1947.2,1946.4,5.26670968]
[1772595400399,1.559,1947.4,1946.4,5.26670968]
[1772595400722,5.13426778,1947.7,1946.7,5.26670968]
[1772595400723,1.28373354,1947.5,1946.7,5.26670968]
[1772595400922,1.28368271,1947.6,1946.7,5.26670968]
[1772595401148,1.28361611,1947.7,1946.7,5.26670968]
[1772595401435,2.83753836,1947.8,1946.9,1.7721197]
[1772595401744,2.83753836,1947.8,1947.0,5.26670968]
[1772595402035,2.83753836,1947.8,1947.1,6.55067044]
[1772595402902,1.554,1947.8,1947.1,6.55067044]
[1772595403102,1.28346997,1947.9,1947.1,6.55067044]
[1772595403410,0.001,1948.0,1947.2,7.03882938]
[1772595403801,0.001,1948.0,1947.0,10.4026653]
[1772595404424,0.001,1948.0,1947.1,5.26670968]
[1772595404725,0.001,1948.0,1947.1,7.11200298]
[1772595405126,0.001,1948.0,1947.0,1.2840267]